[Event "EYCC Open-U18 2019"]
[Site "Bratislava"]
[Date "2019.08.07"]
[Round "6.5"]
[White "Gorshtein, Ido"]
[Black "Salemgareev, Tagir"]
[Result "1/2-1/2"]
[ECO "A25"]
[WhiteElo "2367"]
[BlackElo "2412"]
[Annotator "NA"]
[PlyCount "73"]
[EventDate "2019.08.02"]
[EventType "swiss"]
[EventCountry "SVK"]
[SourceTitle "playchess.com"]
[Source "ChessBase"]
[SourceQuality "1"]
[TimeControl "40/5400+30:1800+30"]

1. c4 {[%emt 0:00:00]} e5 {[%emt 0:00:00]} 2. Nc3 {[%emt 0:00:00]} Nc6 {[%emt 0:00:00]} 3. g3 {[%emt 0:01:30]} g6 {[%emt 0:00:02]} 4. Bg2 {[%emt 0:00:04]} Bg7 {[%emt 0:00:04]} 5. e3 {[%emt 0:00:53]} d6 {[%emt 0:00:05]} 6. Nge2 {[%emt 0:02:53]} f5 {[%emt 0:01:29]} 7. d3 {[%emt 0:03:02]} Nf6 {[%emt 0:00:27]} 8. Rb1 {[%emt 0:03:09]} a5 {[%emt 0:04:24]} 9. a3 {[%emt 0:04:25]} O-O {[%emt 0:00:32]} 10. b4 {[%emt 0:01:06]} axb4 {[%emt 0:00:15]} 11. axb4 {[%emt 0:00:02]} g5 {[%emt 0:03:17]} 12. h4 {[%emt 0:08:47]} h6 {[%emt 0:12:51]} 13. hxg5 {[%emt 0:00:58]} hxg5 {[%emt 0:00:05]} 14. Nd5 {[%emt 0:02:13]} Ne7 {[%emt 0:08:17]} 15. Nec3 {[%emt 0:02:42]} Nexd5 {[%emt 0:15:28]} 16. Nxd5 {[%emt 0:00:19]} c6 {[%emt 0:00:07]} 17. Nxf6+ {[%emt 0:00:25]} Qxf6 {[%emt 0:00:57]} 18. b5 {[%emt 0:01:32]} Bd7 {[%emt 0:00:53]} 19. Qh5 {[%emt 0:20:08]} Rf7 {[%emt 0:10:38]} 20. bxc6 {[%emt 0:03:12]} Bxc6 {[%emt 0:00:39]} 21. Kf1 {[%emt 0:12:15]} Bf8 {[%emt 0:03:04]} 22. Bxc6 {[%emt 0:07:05]} bxc6 {[%emt 0:00:04]} 23. Kg2 {[%emt 0:01:00]} Ra2 {[%emt 0:05:51]} 24. Rb8 {[%emt 0:07:47]} f4 {[%emt 0:10:49]} 25. exf4 {[%emt 0:00:32]} gxf4 {[%emt 0:12:56]} 26. gxf4 {[%emt 0:00:05]} Rc2 {[%emt 0:04:40]} 27. f5 {[%emt 0:05:22]} Qg7+ {[%emt 0:00:34]} 28. Kf3 {[%emt 0:00:43]} d5 {[%emt 0:00:28]} 29. Bh6 {[%emt 0:03:22]} e4+ {[%emt 0:00:32]} 30. Ke3 {[%emt 0:00:36]} d4+ {[%emt 0:01:40]} 31. Kxe4 {[%emt 0:00:05]} Qg2+ {[%emt 0:00:39]} 32. Ke5 {[%emt 0:01:14]} Re2+ {[%emt 0:01:54]} 33. Qxe2 {[%emt 0:00:47]} Re7+ {[%emt 0:00:04]} 34. Kxd4 {[%emt 0:01:57]} Rxe2 {[%emt 0:00:41]} 35. Rxf8+ {[%emt 0:00:05]} Kh7 {[%emt 0:00:03]} 36. Rf7+ {[%emt 0:03:26]} Kh8 {[%emt 0:00:05]} 37. Rf8+ 1/2-1/2

[Event "EYCC Open-U18 2019"]
[Site "Bratislava"]
[Date "2019.08.07"]
[Round "6.6"]
[White "Van Foreest, Lucas"]
[Black "Bronstein, Or"]
[Result "0-1"]
[ECO "A02"]
[WhiteElo "2521"]
[BlackElo "2378"]
[Annotator "ChessBase"]
[PlyCount "72"]
[EventDate "2019.08.02"]
[EventType "swiss"]
[EventCountry "SVK"]
[SourceTitle "playchess.com"]
[Source "ChessBase"]
[SourceQuality "1"]
[TimeControl "40/5400+30:1800+30"]

1. f4 {[%emt 0:00:00]} Nf6 {[%emt 0:01:37]} 2. Nf3 {[%emt 0:00:00]} g6 {[%emt 0:01:46]} 3. g3 {[%emt 0:00:00]} Bg7 {[%emt 0:00:06]} 4. Bg2 {[%emt 0:00:10]} O-O {[%emt 0:00:07]} 5. O-O {[%emt 0:00:03]} c5 {[%emt 0:06:51]} 6. d3 {[%emt 0:00:44]} Nc6 {[%emt 0:00:53]} 7. e4 {[%emt 0:01:10]} d6 {[%emt 0:00:05]} 8. Nh4 {[%emt 0:00:05]} Rb8 {[%emt 0:01:48]} 9. Kh1 {[%emt 0:20:49]} Nd7 {[%emt 0:04:47]} 10. c3 {[%emt 0:08:00]} b5 {[%emt 0:03:51]} 11. Be3 {[%emt 0:09:30]} b4 {[%emt 0:01:20]} 12. e5 {[%emt 0:12:48]} bxc3 {[%emt 0:03:55]} 13. bxc3 {[%emt 0:01:10]} Qc7 {[%emt 0:07:00]} 14. Nd2 {[%emt 0:00:06]} dxe5 {[%emt 0:05:12]} 15. f5 {[%emt 0:00:01]} Nf6 {[%emt 0:08:25]} 16. Bxc5 {[%emt 0:01:00]} g5 {[%emt 0:09:37]} 17. Nhf3 {[%emt 0:00:43]} Bxf5 {[%emt 0:00:03]} 18. Nxg5 {[%emt 0:00:53]} Bxd3 {[%emt 0:00:11]} 19. Nde4 {[%emt 0:08:37]} Nxe4 {[%emt 0:02:56]} 20. Nxe4 {[%emt 0:03:55]} Bxf1 {[%emt 0:02:54]} 21. Qxf1 {[%emt 0:00:00]} Nd8 {[%emt 0:06:18]} 22. Qf5 {[%emt 0:08:10]} Ne6 {[%emt 0:00:29]} 23. Rf1 {[%emt 0:00:50]} Rb2 {[%emt 0:02:04]} 24. Bf3 {[%emt 0:00:14]} h6 {[%emt 0:05:35]} 25. Be3 {[%emt 0:01:43]} Qc8 {[%emt 0:06:38]} 26. h4 {[%emt 0:04:17]} Nc7 {[%emt 0:02:39]} 27. Qxc8 {[%emt 0:01:30]} Rxc8 {[%emt 0:00:01]} 28. Bh5 {[%emt 0:01:03]} Rf8 {[%emt 0:02:47]} 29. Bc5 {[%emt 0:01:09]} Nd5 {[%emt 0:00:04]} 30. Rd1 {[%emt 0:01:56]} Nf6 {[%emt 0:04:13]} 31. Bf3 {[%emt 0:00:09]} Rfb8 {[%emt 0:03:11]} 32. Bxa7 {[%emt 0:01:19]} Rc8 {[%emt 0:01:08]} 33. Be3 {[%emt 0:00:09]} Nxe4 {[%emt 0:00:25]} 34. Bxe4 {[%emt 0:00:01]} Re2 {[%emt 0:00:32]} 35. Rd3 {[%emt 0:01:38]} Rb8 {[%emt 0:00:23]} 36. Bf5 {[%emt 0:00:54]} e4 {[%emt 0:00:38]} 0-1

[Event "EYCC Open-U18 2019"]
[Site "Bratislava"]
[Date "2019.08.07"]
[Round "6.7"]
[White "Baenziger, Fabian"]
[Black "Nguyen, Thai Dai Van"]
[Result "0-1"]
[ECO "E04"]
[WhiteElo "2352"]
[BlackElo "2535"]
[Annotator "ChessBase"]
[PlyCount "52"]
[EventDate "2019.08.02"]
[EventType "swiss"]
[EventCountry "SVK"]
[SourceTitle "playchess.com"]
[Source "ChessBase"]
[SourceQuality "1"]
[TimeControl "40/5400+30:1800+30"]

1. d4 {[%emt 0:00:00]} d5 {[%emt 0:00:00]} 2. c4 {[%emt 0:00:03]} e6 {[%emt 0:00:00]} 3. Nf3 {[%emt 0:00:32]} Nf6 {[%emt 0:00:00]} 4. g3 {[%emt 0:01:11]} dxc4 {[%emt 0:00:14]} 5. Bg2 {[%emt 0:00:10]} c6 {[%emt 0:00:07]} 6. Ne5 {[%emt 0:02:57]} Bb4+ {[%emt 0:00:07]} 7. Bd2 {[%emt 0:05:46]} Be7 {[%emt 0:00:06]} 8. Na3 {[%emt 0:15:15]} Bxa3 {[%emt 0:24:13]} 9. bxa3 {[%emt 0:00:05]} Qxd4 {[%emt 0:00:04]} 10. Ba5 {[%emt 0:03:00]} Qxd1+ {[%emt 0:04:52]} 11. Rxd1 {[%emt 0:00:05]} b6 {[%emt 0:02:52]} 12. Nxc6 {[%emt 0:11:31]} Nd5 {[%emt 0:16:04]} 13. Nb4 {[%emt 0:05:06]} Nc7 {[%emt 0:03:16]} 14. Nc6 {[%emt 0:00:43]} Nd5 {[%emt 0:15:12]} 15. Nb4 {[%emt 0:00:17]} Bb7 {[%emt 0:02:47]} 16. Nxd5 {[%emt 0:01:49]} exd5 {[%emt 0:00:03]} 17. Bb4 {[%emt 0:03:51]} Na6 {[%emt 0:00:53]} 18. Bxd5 {[%emt 0:01:55]} O-O-O {[%emt 0:00:05]} 19. Bxb7+ {[%emt 0:08:49]} Kxb7 {[%emt 0:00:01]} 20. Rc1 {[%emt 0:04:49]} Nxb4 {[%emt 0:07:19]} 21. axb4 {[%emt 0:00:05]} b5 {[%emt 0:00:03]} 22. Rd1 {[%emt 0:04:03]} Kb6 {[%emt 0:02:22]} 23. e3 {[%emt 0:01:55]} a5 {[%emt 0:01:54]} 24. bxa5+ {[%emt 0:00:07]} Kxa5 {[%emt 0:00:04]} 25. Ke2 {[%emt 0:00:04]} Kb4 {[%emt 0:00:59]} 26. Rb1+ {[%emt 0:01:17]} Kc5 {[%emt 0:00:25]} 0-1

[Event "EYCC Open-U18 2019"]
[Site "Bratislava"]
[Date "2019.08.07"]
[Round "6.8"]
[White "Bjerre, Jonas Buhl"]
[Black "Travadon, Loic"]
[Result "1-0"]
[ECO "C60"]
[WhiteElo "2503"]
[BlackElo "2403"]
[Annotator "ChessBase"]
[PlyCount "71"]
[EventDate "2019.08.02"]
[EventType "swiss"]
[EventCountry "SVK"]
[SourceTitle "playchess.com"]
[Source "ChessBase"]
[SourceQuality "1"]
[TimeControl "40/5400+30:1800+30"]

1. e4 {[%emt 0:00:00]} e5 {[%emt 0:00:00]} 2. Nf3 {[%emt 0:00:05]} Nc6 {[%emt 0:00:00]} 3. Bb5 {[%emt 0:00:52]} g6 {[%emt 0:00:00]} 4. c3 {[%emt 0:03:08]} a6 {[%emt 0:00:00]} 5. Ba4 {[%emt 0:04:31]} Bg7 {[%emt 0:00:08]} 6. d4 {[%emt 0:01:44]} exd4 {[%emt 0:00:06]} 7. cxd4 {[%emt 0:00:14]} b5 {[%emt 0:00:06]} 8. Bb3 {[%emt 0:03:48]} Nge7 {[%emt 0:00:05]} 9. O-O {[%emt 0:01:44]} d6 {[%emt 0:00:41]} 10. d5 {[%emt 0:16:54]} Na5 {[%emt 0:00:28]} 11. Bc2 {[%emt 0:00:52]} O-O {[%emt 0:01:33]} 12. Nc3 {[%emt 0:03:27]} Bg4 {[%emt 0:22:00]} 13. h3 {[%emt 0:03:16]} Bxf3 {[%emt 0:00:12]} 14. Qxf3 {[%emt 0:00:06]} c6 {[%emt 0:01:12]} 15. dxc6 {[%emt 0:05:11]} Nexc6 {[%emt 0:00:11]} 16. Qd1 {[%emt 0:04:29]} Rc8 {[%emt 0:02:55]} 17. Nd5 {[%emt 0:05:40]} Nc4 {[%emt 0:01:08]} 18. Rb1 {[%emt 0:02:22]} Nb6 {[%emt 0:07:35]} 19. Bb3 {[%emt 0:04:57]} Nxd5 {[%emt 0:07:01]} 20. Bxd5 {[%emt 0:00:22]} Qf6 {[%emt 0:02:12]} 21. Be3 {[%emt 0:04:40]} Ne7 {[%emt 0:00:42]} 22. Bb3 {[%emt 0:02:03]} d5 {[%emt 0:08:16]} 23. Bxd5 {[%emt 0:07:59]} Rfd8 {[%emt 0:00:26]} 24. Qb3 {[%emt 0:02:37]} Nxd5 {[%emt 0:00:06]} 25. exd5 {[%emt 0:00:03]} Rc4 {[%emt 0:00:57]} 26. Rfd1 {[%emt 0:02:57]} Qe5 {[%emt 0:07:22]} 27. Qd3 {[%emt 0:02:19]} f5 {[%emt 0:00:34]} 28. b3 {[%emt 0:02:41]} Rc3 {[%emt 0:03:02]} 29. Qd2 {[%emt 0:00:18]} Qe4 {[%emt 0:05:08]} 30. Bg5 {[%emt 0:01:10]} Rd7 {[%emt 0:01:54]} 31. Re1 {[%emt 0:00:49]} Qd3 {[%emt 0:00:23]} 32. Qf4 {[%emt 0:03:52]} Qxd5 {[%emt 0:05:18]} 33. Qb8+ {[%emt 0:01:11]} Bf8 {[%emt 0:00:01]} 34. Re8 {[%emt 0:01:00]} Qc5 {[%emt 0:00:29]} 35. Bh6 {[%emt 0:01:59]} Rf7 {[%emt 0:00:13]} 36. b4 {[%emt 0:00:31]} 1-0

[Event "EYCC Open-U18 2019"]
[Site "Bratislava"]
[Date "2019.08.07"]
[Round "6.9"]
[White "Godzwon, Iwo"]
[Black "Gumularz, Szymon"]
[Result "1/2-1/2"]
[ECO "B57"]
[WhiteElo "2285"]
[BlackElo "2502"]
[Annotator "ChessBase"]
[PlyCount "50"]
[EventDate "2019.08.02"]
[EventType "swiss"]
[EventCountry "SVK"]
[SourceTitle "playchess.com"]
[Source "ChessBase"]
[SourceQuality "1"]
[TimeControl "40/5400+30:1800+30"]

1. e4 {[%emt 0:00:00]} c5 {[%emt 0:00:00]} 2. Nf3 {[%emt 0:00:00]} Nc6 {[%emt 0:00:00]} 3. d4 {[%emt 0:00:00]} cxd4 {[%emt 0:00:00]} 4. Nxd4 {[%emt 0:00:00]} Nf6 {[%emt 0:00:02]} 5. Nc3 {[%emt 0:00:00]} d6 {[%emt 0:00:04]} 6. Bc4 {[%emt 0:00:00]} Qb6 {[%emt 0:05:08]} 7. Nxc6 {[%emt 0:10:45]} bxc6 {[%emt 0:00:55]} 8. O-O {[%emt 0:01:53]} e6 {[%emt 0:17:17]} 9. Bb3 {[%emt 0:12:19]} Be7 {[%emt 0:00:42]} 10. Bf4 {[%emt 0:00:16]} e5 {[%emt 0:09:07]} 11. Bg5 {[%emt 0:00:12]} Qc7 {[%emt 0:05:14]} 12. Qd3 {[%emt 0:12:55]} O-O {[%emt 0:08:33]} 13. Rad1 {[%emt 0:02:43]} Rd8 {[%emt 0:02:41]} 14. f4 {[%emt 0:00:28]} Qb6+ {[%emt 0:17:02]} 15. Kh1 {[%emt 0:01:03]} Ba6 {[%emt 0:00:08]} 16. Bc4 {[%emt 0:01:07]} Bxc4 {[%emt 0:01:34]} 17. Qxc4 {[%emt 0:00:04]} h6 {[%emt 0:03:27]} 18. Bxf6 {[%emt 0:02:45]} Bxf6 {[%emt 0:00:04]} 19. fxe5 {[%emt 0:05:08]} dxe5 {[%emt 0:07:18]} 20. Na4 {[%emt 0:00:55]} Qc7 {[%emt 0:00:06]} 21. Nc5 {[%emt 0:04:31]} Rd4 {[%emt 0:03:39]} 22. Rxd4 {[%emt 0:00:21]} exd4 {[%emt 0:00:04]} 23. Nd3 {[%emt 0:00:07]} Re8 {[%emt 0:01:34]} 24. e5 {[%emt 0:00:15]} Bxe5 {[%emt 0:01:18]} 25. Nxe5 {[%emt 0:00:04]} Rxe5 {[%emt 0:00:09]} 1/2-1/2

[Event "EYCC Open-U18 2019"]
[Site "Bratislava"]
[Date "2019.08.07"]
[Round "6.10"]
[White "Stevanic, David"]
[Black "Erenberg, Ariel"]
[Result "0-1"]
[ECO "C88"]
[WhiteElo "2306"]
[BlackElo "2442"]
[Annotator "NA"]
[PlyCount "60"]
[EventDate "2019.08.02"]
[EventType "swiss"]
[EventCountry "SVK"]
[SourceTitle "playchess.com"]
[Source "ChessBase"]
[SourceQuality "1"]
[TimeControl "40/5400+30:1800+30"]

1. e4 {[%emt 0:00:00]} e5 {[%emt 0:00:00]} 2. Nf3 {[%emt 0:00:00]} Nc6 {[%emt 0:00:00]} 3. Bb5 {[%emt 0:00:16]} a6 {[%emt 0:00:00]} 4. Ba4 {[%emt 0:00:05]} Nf6 {[%emt 0:00:00]} 5. O-O {[%emt 0:00:55]} Be7 {[%emt 0:00:00]} 6. Re1 {[%emt 0:00:31]} b5 {[%emt 0:00:04]} 7. Bb3 {[%emt 0:00:04]} d6 {[%emt 0:00:05]} 8. a4 {[%emt 0:00:20]} Bg4 {[%emt 0:01:00]} 9. c3 {[%emt 0:01:09]} O-O {[%emt 0:00:47]} 10. h3 {[%emt 0:01:21]} Bxf3 {[%emt 0:04:58]} 11. Qxf3 {[%emt 0:00:10]} Na5 {[%emt 0:01:47]} 12. Bc2 {[%emt 0:00:22]} c5 {[%emt 0:00:36]} 13. d3 {[%emt 0:00:45]} b4 {[%emt 0:03:27]} 14. Nd2 {[%emt 0:06:16]} Rb8 {[%emt 0:08:37]} 15. cxb4 {[%emt 0:15:20]} Rxb4 {[%emt 0:06:17]} 16. Nf1 {[%emt 0:01:45]} Nc6 {[%emt 0:08:37]} 17. Bd1 {[%emt 0:03:41]} Ne8 {[%emt 0:06:43]} 18. Ng3 {[%emt 0:17:52]} Nd4 {[%emt 0:11:11]} 19. Qe3 {[%emt 0:00:18]} h6 {[%emt 0:08:54]} 20. Qd2 {[%emt 0:04:37]} Bg5 {[%emt 0:01:13]} 21. Qc3 {[%emt 0:00:12]} Bxc1 {[%emt 0:01:16]} 22. Rxc1 {[%emt 0:03:34]} Nc7 {[%emt 0:00:14]} 23. Nf1 {[%emt 0:01:30]} Nce6 {[%emt 0:01:26]} 24. g3 {[%emt 0:05:43]} Ng5 {[%emt 0:04:12]} 25. Kg2 {[%emt 0:00:11]} Qd7 {[%emt 0:00:36]} 26. Bg4 {[%emt 0:06:10]} f5 {[%emt 0:09:04]} 27. exf5 h5 28. h4 {[%emt 0:06:08]} Qb7+ {[%emt 0:02:21]} 29. f3 {[%emt 0:00:06]} hxg4 {[%emt 0:04:29]} 30. hxg5 {[%emt 0:00:07]} Rxb2+ {[%emt 0:01:38]} 0-1

[Event "EYCC Open-U18 2019"]
[Site "Bratislava"]
[Date "2019.08.07"]
[Round "6.11"]
[White "Petriashvili, Nikoloz"]
[Black "Maksimovic, Bojan"]
[Result "1/2-1/2"]
[ECO "B06"]
[WhiteElo "2451"]
[BlackElo "2326"]
[Annotator "ChessBase"]
[PlyCount "108"]
[EventDate "2019.08.02"]
[EventType "swiss"]
[EventCountry "SVK"]
[SourceTitle "playchess.com"]
[Source "ChessBase"]
[SourceQuality "1"]
[TimeControl "40/5400+30:1800+30"]

1. d4 {[%emt 0:00:00]} g6 {[%emt 0:00:00]} 2. e4 {[%emt 0:00:00]} Bg7 {[%emt 0:00:00]} 3. Nc3 {[%emt 0:00:00]} d6 {[%emt 0:00:00]} 4. g3 {[%emt 0:00:00]} Nf6 {[%emt 0:01:28]} 5. Bg2 {[%emt 0:00:43]} O-O {[%emt 0:00:20]} 6. Nge2 {[%emt 0:00:04]} Nbd7 {[%emt 0:03:14]} 7. O-O {[%emt 0:02:10]} c5 {[%emt 0:00:57]} 8. h3 {[%emt 0:01:38]} Rb8 {[%emt 0:04:00]} 9. a4 {[%emt 0:11:45]} b6 {[%emt 0:04:18]} 10. Be3 {[%emt 0:01:16]} a6 {[%emt 0:07:38]} 11. Re1 {[%emt 0:02:14]} cxd4 {[%emt 0:05:21]} 12. Nxd4 {[%emt 0:00:53]} Bb7 {[%emt 0:00:29]} 13. Nd5 {[%emt 0:10:14]} e6 {[%emt 0:13:37]} 14. Nxf6+ {[%emt 0:08:16]} Bxf6 {[%emt 0:01:34]} 15. c4 {[%emt 0:03:49]} Qc7 {[%emt 0:04:09]} 16. Rc1 {[%emt 0:00:48]} Ba8 {[%emt 0:03:39]} 17. b3 {[%emt 0:01:30]} Rfe8 {[%emt 0:02:02]} 18. Qc2 {[%emt 0:13:37]} Bg7 {[%emt 0:01:10]} 19. Ne2 {[%emt 0:00:42]} Ne5 {[%emt 0:08:13]} 20. Red1 {[%emt 0:01:32]} Red8 {[%emt 0:01:40]} 21. Bd4 {[%emt 0:04:39]} Nc6 {[%emt 0:03:08]} 22. Bxg7 {[%emt 0:00:35]} Kxg7 {[%emt 0:00:03]} 23. Rd2 {[%emt 0:01:35]} Kg8 {[%emt 0:01:11]} 24. Nf4 {[%emt 0:00:59]} Ne5 {[%emt 0:03:28]} 25. Nd3 {[%emt 0:06:47]} Nxd3 {[%emt 0:01:44]} 26. Rxd3 {[%emt 0:00:11]} Rbc8 {[%emt 0:04:05]} 27. Qd2 {[%emt 0:00:20]} b5 {[%emt 0:06:40]} 28. axb5 {[%emt 0:00:04]} axb5 {[%emt 0:00:06]} 29. c5 {[%emt 0:00:31]} dxc5 {[%emt 0:04:45]} 30. Rxc5 {[%emt 0:00:38]} Qxc5 {[%emt 0:02:01]} 31. Rxd8+ {[%emt 0:00:11]} Rxd8 {[%emt 0:01:29]} 32. Qxd8+ {[%emt 0:00:02]} Qf8 {[%emt 0:00:08]} 33. Qb6 {[%emt 0:05:38]} Qe8 {[%emt 0:01:00]} 34. h4 {[%emt 0:03:53]} e5 {[%emt 0:02:13]} 35. h5 {[%emt 0:03:01]} Kg7 {[%emt 0:00:46]} 36. Qe3 {[%emt 0:00:46]} Bc6 {[%emt 0:06:29]} 37. h6+ {[%emt 0:01:26]} Kg8 {[%emt 0:00:02]} 38. Qg5 {[%emt 0:03:07]} Bd7 {[%emt 0:01:08]} 39. Qf6 {[%emt 0:00:06]} Qf8 {[%emt 0:00:05]} 40. Bf3 {[%emt 0:00:00]} Be6 {[%emt 0:00:00]} 41. Qxe5 {[%emt 0:03:27]} Qxh6 {[%emt 0:01:57]} 42. Qxb5 {[%emt 0:04:15]} Qc1+ {[%emt 0:00:19]} 43. Kg2 {[%emt 0:00:04]} Qc3 {[%emt 0:03:57]} 44. Bd1 {[%emt 0:01:17]} Qd4 {[%emt 0:02:47]} 45. Qe2 {[%emt 0:01:24]} Qb4 {[%emt 0:05:11]} 46. Qc2 {[%emt 0:01:58]} h5 {[%emt 0:00:32]} 47. Qd3 {[%emt 0:01:41]} Kg7 {[%emt 0:02:09]} 48. Qe3 {[%emt 0:00:03]} Kg8 {[%emt 0:01:34]} 49. Bc2 {[%emt 0:00:04]} Kg7 {[%emt 0:00:46]} 50. Kf1 {[%emt 0:00:28]} Kg8 {[%emt 0:02:01]} 51. Qd3 {[%emt 0:02:20]} Bh3+ {[%emt 0:01:03]} 52. Ke2 {[%emt 0:00:11]} Bg4+ {[%emt 0:00:23]} 53. f3 {[%emt 0:00:10]} Be6 {[%emt 0:00:08]} 54. Qd8+ {[%emt 0:02:20]} Kh7 {[%emt 0:00:24]} 1/2-1/2

[Event "EYCC Open-U18 2019"]
[Site "Bratislava"]
[Date "2019.08.07"]
[Round "6.12"]
[White "Gaifullin, Artur"]
[Black "Gatineau, Yovann"]
[Result "0-1"]
[ECO "A06"]
[WhiteElo "2453"]
[BlackElo "2364"]
[Annotator "ChessBase"]
[PlyCount "60"]
[EventDate "2019.08.02"]
[EventType "swiss"]
[EventCountry "SVK"]
[SourceTitle "playchess.com"]
[Source "ChessBase"]
[SourceQuality "1"]
[TimeControl "40/5400+30:1800+30"]

1. Nf3 {[%emt 0:00:00]} d5 {[%emt 0:00:00]} 2. g3 {[%emt 0:00:14]} g6 {[%emt 0:00:00]} 3. Bg2 {[%emt 0:00:08]} Bg7 {[%emt 0:00:00]} 4. O-O {[%emt 0:00:14]} e5 {[%emt 0:00:00]} 5. c4 {[%emt 0:01:01]} d4 {[%emt 0:00:02]} 6. d3 {[%emt 0:00:13]} Ne7 {[%emt 0:00:08]} 7. b4 {[%emt 0:02:31]} a5 {[%emt 0:00:24]} 8. b5 {[%emt 0:00:06]} c5 {[%emt 0:00:17]} 9. Nbd2 {[%emt 0:02:29]} Ra7 {[%emt 0:01:27]} 10. Ne4 {[%emt 0:02:02]} b6 {[%emt 0:01:53]} 11. Bg5 {[%emt 0:00:05]} Qc7 {[%emt 0:01:27]} 12. Bf6 {[%emt 0:06:10]} Kf8 {[%emt 0:01:01]} 13. Qc1 {[%emt 0:06:15]} h6 {[%emt 0:00:32]} 14. Nh4 {[%emt 0:09:44]} g5 {[%emt 0:10:52]} 15. Bxg7+ {[%emt 0:13:05]} Kxg7 {[%emt 0:00:11]} 16. Nxg5 {[%emt 0:04:02]} hxg5 {[%emt 0:00:27]} 17. Qxg5+ {[%emt 0:00:07]} Ng6 {[%emt 0:00:53]} 18. Nxg6 {[%emt 0:06:11]} fxg6 {[%emt 0:00:40]} 19. Be4 {[%emt 0:00:05]} Qd6 {[%emt 0:06:07]} 20. Bxg6 {[%emt 0:07:02]} Qxg6 {[%emt 0:01:30]} 21. Qxe5+ {[%emt 0:00:05]} Qf6 {[%emt 0:01:34]} 22. Qxb8 {[%emt 0:00:06]} Rb7 {[%emt 0:01:22]} 23. Qf4 {[%emt 0:00:29]} Qxf4 {[%emt 0:00:14]} 24. gxf4 {[%emt 0:00:01]} Bh3 {[%emt 0:00:09]} 25. Rfe1 {[%emt 0:00:10]} Kf6 {[%emt 0:05:03]} 26. Kh1 {[%emt 0:00:04]} Rbh7 {[%emt 0:00:30]} 27. e4 {[%emt 0:12:04]} Bg4 {[%emt 0:01:18]} 28. Kg2 {[%emt 0:00:05]} Rxh2+ {[%emt 0:02:31]} 29. Kg3 {[%emt 0:00:00]} R8h4 {[%emt 0:00:21]} 30. f3 {[%emt 0:00:57]} Bh5 {[%emt 0:00:05]} 0-1

[Event "EYCC Open-U18 2019"]
[Site "Bratislava"]
[Date "2019.08.07"]
[Round "6.13"]
[White "Anghelus, Alin-Gabriel"]
[Black "Parkhov, Yair"]
[Result "1/2-1/2"]
[ECO "B24"]
[WhiteElo "2107"]
[BlackElo "2354"]
[Annotator "NA"]
[PlyCount "92"]
[EventDate "2019.08.02"]
[EventType "swiss"]
[EventCountry "SVK"]
[SourceTitle "playchess.com"]
[Source "ChessBase"]
[SourceQuality "1"]
[TimeControl "40/5400+30:1800+30"]

1. e4 {[%emt 0:00:00]} c5 {[%emt 0:00:00]} 2. Nc3 {[%emt 0:00:00]} Nc6 {[%emt 0:00:00]} 3. Bb5 {[%emt 0:00:24]} Nd4 {[%emt 0:00:00]} 4. Nf3 {[%emt 0:00:26]} e6 {[%emt 0:00:32]} 5. Nxd4 {[%emt 0:01:05]} cxd4 {[%emt 0:00:17]} 6. Ne2 {[%emt 0:00:21]} Qg5 {[%emt 0:08:19]} 7. Bd3 {[%emt 0:06:27]} Qxg2 {[%emt 0:03:43]} 8. Ng3 {[%emt 0:00:08]} Qh3 {[%emt 0:00:14]} 9. b3 {[%emt 0:01:50]} Ne7 {[%emt 0:08:13]} 10. Bb2 {[%emt 0:02:36]} Nc6 {[%emt 0:01:28]} 11. c3 {[%emt 0:01:14]} d5 {[%emt 0:13:47]} 12. cxd4 {[%emt 0:06:11]} Bd7 {[%emt 0:03:32]} 13. a3 {[%emt 0:08:11]} Be7 {[%emt 0:08:52]} 14. Qe2 {[%emt 0:04:56]} Qh4 {[%emt 0:06:21]} 15. b4 {[%emt 0:12:13]} a6 {[%emt 0:02:51]} 16. f3 {[%emt 0:02:53]} Rc8 {[%emt 0:07:58]} 17. Qf2 {[%emt 0:01:35]} O-O {[%emt 0:02:11]} 18. O-O {[%emt 0:05:14]} f5 {[%emt 0:01:12]} 19. e5 {[%emt 0:02:39]} Na7 {[%emt 0:03:42]} 20. Bc3 {[%emt 0:06:03]} Bb5 {[%emt 0:05:19]} 21. Bxb5 {[%emt 0:00:10]} Nxb5 {[%emt 0:00:11]} 22. Ne2 {[%emt 0:00:15]} Qh6 {[%emt 0:03:06]} 23. a4 {[%emt 0:01:10]} Nc7 {[%emt 0:02:11]} 24. f4 {[%emt 0:02:22]} g5 {[%emt 0:00:53]} 25. Kh1 {[%emt 0:00:24]} Kf7 {[%emt 0:01:19]} 26. Nc1 {[%emt 0:01:47]} g4 {[%emt 0:01:47]} 27. Nd3 {[%emt 0:00:24]} Rg8 {[%emt 0:02:14]} 28. Rg1 {[%emt 0:01:09]} Rg6 {[%emt 0:03:12]} 29. Nc5 {[%emt 0:00:51]} b6 {[%emt 0:01:04]} 30. Nd7 {[%emt 0:00:42]} Rcg8 {[%emt 0:00:54]} 31. Rg3 {[%emt 0:00:23]} Na8 {[%emt 0:02:02]} 32. b5 {[%emt 0:03:39]} Rd8 {[%emt 0:01:25]} 33. Nf6 {[%emt 0:01:16]} a5 {[%emt 0:00:11]} 34. Rc1 {[%emt 0:00:30]} Rc8 {[%emt 0:01:58]} 35. Bb2 {[%emt 0:03:29]} Rxc1+ {[%emt 0:00:06]} 36. Bxc1 {[%emt 0:00:05]} Bxf6 {[%emt 0:00:07]} 37. exf6 {[%emt 0:00:05]} Rg8 {[%emt 0:00:09]} 38. Rc3 {[%emt 0:00:28]} Qxf6 {[%emt 0:00:38]} 39. Ba3 {[%emt 0:00:30]} h5 {[%emt 0:01:36]} 40. Bd6 {[%emt 0:00:00]} h4 {[%emt 0:00:00]} 41. Kg2 {[%emt 0:03:13]} Rd8 {[%emt 0:09:47]} 42. Be5 {[%emt 0:01:22]} Qe7 {[%emt 0:00:08]} 43. Qe1 {[%emt 0:01:56]} Rg8 {[%emt 0:03:06]} 44. Qc1 {[%emt 0:05:44]} h3+ {[%emt 0:02:01]} 45. Kg1 {[%emt 0:03:03]} Qh4 {[%emt 0:03:03]} 46. Rg3 {[%emt 0:00:15]} Qe7 {[%emt 0:00:31]} 1/2-1/2

[Event "EYCC Open-U18 2019"]
[Site "Bratislava"]
[Date "2019.08.07"]
[Round "6.14"]
[White "Schoppen, Casper"]
[Black "Levitskiy, Andrey"]
[Result "0-1"]
[ECO "A04"]
[WhiteElo "2493"]
[BlackElo "2280"]
[Annotator "ChessBase"]
[PlyCount "52"]
[EventDate "2019.08.02"]
[EventType "swiss"]
[EventCountry "SVK"]
[SourceTitle "playchess.com"]
[Source "ChessBase"]
[SourceQuality "1"]
[TimeControl "40/5400+30:1800+30"]

1. Nf3 {[%emt 0:00:00]} c5 {[%emt 0:00:05]} 2. g3 {[%emt 0:00:00]} Nc6 {[%emt 0:04:31]} 3. Bg2 {[%emt 0:00:00]} e5 {[%emt 0:02:06]} 4. O-O {[%emt 0:00:08]} g6 {[%emt 0:02:01]} 5. c4 {[%emt 0:01:12]} Bg7 {[%emt 0:00:27]} 6. Nc3 {[%emt 0:00:06]} Nge7 {[%emt 0:02:37]} 7. a3 {[%emt 0:01:07]} O-O {[%emt 0:00:13]} 8. Rb1 {[%emt 0:00:02]} a5 {[%emt 0:03:13]} 9. Ne1 {[%emt 0:00:30]} d6 {[%emt 0:00:14]} 10. Nc2 {[%emt 0:00:19]} Be6 {[%emt 0:00:14]} 11. Ne3 {[%emt 0:00:29]} Rb8 {[%emt 0:00:23]} 12. Ned5 {[%emt 0:03:20]} Qd7 {[%emt 0:04:45]} 13. d3 {[%emt 0:07:38]} Bh3 {[%emt 0:08:05]} 14. Nxe7+ {[%emt 0:17:07]} Nxe7 {[%emt 0:00:08]} 15. Bxh3 {[%emt 0:00:29]} Qxh3 {[%emt 0:00:08]} 16. b4 {[%emt 0:00:12]} axb4 {[%emt 0:05:06]} 17. axb4 {[%emt 0:00:19]} b6 {[%emt 0:12:30]} 18. Bg5 {[%emt 0:07:19]} f6 {[%emt 0:05:36]} 19. Bd2 {[%emt 0:01:00]} f5 {[%emt 0:04:57]} 20. bxc5 {[%emt 0:02:07]} dxc5 {[%emt 0:06:16]} 21. Qa4 {[%emt 0:11:44]} f4 {[%emt 0:05:16]} 22. Ne4 {[%emt 0:03:28]} Rbd8 {[%emt 0:06:33]} 23. Rxb6 {[%emt 0:13:58]} Nf5 {[%emt 0:01:32]} 24. Bc3 {[%emt 0:04:48]} fxg3 {[%emt 0:04:59]} 25. Nxg3 {[%emt 0:00:22]} Nh4 {[%emt 0:00:04]} 26. Qc6 {[%emt 0:00:14]} Rd6 {[%emt 0:00:14]} 0-1